bitfinex-derivatives/quotes_BTCF0:USTF0_20251030
["timestamp","ask_amount","ask_price","bid_price","bid_amount"]
[1761841215067,0.4245,108000.0,107990.0,0.65789408]
[1761841215267,0.43424441,108000.0,107990.0,0.41665]
[1761841215867,0.38956441,108000.0,107990.0,0.41665]
[1761841216171,0.36424441,108000.0,107990.0,0.41665]
[1761841216367,0.36524441,108000.0,107990.0,0.41665]
[1761841216869,0.34624441,108000.0,107990.0,0.41665]
[1761841217172,0.39156441,108000.0,107990.0,0.41665]
[1761841217873,0.37156441,108000.0,107990.0,0.41665]
[1761841218170,0.39156441,108000.0,107990.0,0.41665]
[1761841219275,0.58465082,108000.0,107990.0,0.60973641]
[1761841219468,0.53933082,108000.0,107990.0,0.60973641]
[1761841219666,0.36624441,108000.0,107990.0,0.60973641]
[1761841220064,0.55933082,108000.0,107990.0,0.60973641]
[1761841220272,0.57199082,108000.0,107990.0,0.60973641]
[1761841220771,0.55199082,108000.0,107990.0,0.60973641]
[1761841220977,0.58465082,108000.0,107990.0,0.60973641]
[1761841221574,0.56465082,108000.0,107990.0,0.60973641]
[1761841221768,0.58465082,108000.0,107990.0,0.60973641]
[1761841221965,0.56465082,108000.0,107990.0,0.60973641]
[1761841222169,0.58465082,108000.0,107990.0,0.60973641]
[1761841222875,0.56465082,108000.0,107990.0,0.60973641]
[1761841223380,0.57199082,108000.0,107990.0,0.60973641]
[1761841223570,0.58465082,108000.0,107990.0,0.60973641]
[1761841224986,0.56465082,108000.0,107990.0,0.41665]
[1761841225168,0.77773723,108000.0,107990.0,0.41665]
[1761841225480,0.80773723,108000.0,107990.0,0.41665]
[1761841226081,1.06773723,108000.0,107990.0,0.41665]
[1761841227382,1.06773723,108000.0,107990.0,0.39561]
[1761841227588,0.02532,107990.0,107980.0,0.4198]
[1761841227881,0.50840641,107990.0,107980.0,0.4198]
[1761841231072,0.50840641,107990.0,107980.0,0.61288641]
[1761841231272,0.67177755,107990.0,107980.0,0.61288641]
[1761841231473,0.40177755,107990.0,107980.0,0.61288641]
[1761841231881,0.07998715,107990.0,107980.0,0.61288641]
[1761841232180,0.02234115,107990.0,107980.0,0.80597282]
[1761841232386,0.024986,108000.0,107990.0,0.05886]
[1761841232680,0.346786,108000.0,107990.0,0.61274641]
[1761841232886,0.346786,108000.0,107990.0,1.21274641]
[1761841233076,0.346786,108000.0,107990.0,0.61274641]
[1761841233274,0.3218,108000.0,107990.0,0.66092598]
[1761841233480,0.024986,108010.0,108000.0,0.05886]
[1761841233693,0.024986,108010.0,108000.0,0.66092598]
[1761841233694,0.346786,108010.0,108000.0,0.66092598]
[1761841233983,0.346786,108010.0,108000.0,0.41966]
[1761841235288,0.392106,108010.0,108000.0,0.41966]
[1761841235489,0.397106,108010.0,108000.0,0.41966]
[1761841236484,0.43026538,108010.0,108000.0,0.41966]
[1761841237293,0.41760538,108010.0,108000.0,0.41966]
[1761841237475,0.42709658,108010.0,108000.0,0.41966]
[1761841237786,0.43975658,108010.0,108000.0,0.41966]
[1761841238184,0.40494538,108010.0,108000.0,0.41966]
[1761841238380,0.06314538,108010.0,108000.0,0.66092598]
[1761841238688,0.38490538,108010.0,108000.0,0.66092598]
[1761841238981,0.38490538,108010.0,108000.0,0.41966]
[1761841239577,0.40490538,108010.0,108000.0,0.41966]
[1761841239779,0.41022538,108010.0,108000.0,0.41966]
[1761841240283,0.377066,108010.0,108000.0,0.41966]
[1761841240676,0.397066,108010.0,108000.0,0.41966]
[1761841240882,0.70149136,108010.0,108000.0,0.41966]
[1761841241590,0.64334598,108010.0,108000.0,0.41966]
[1761841242391,0.59334598,108010.0,108000.0,0.41966]
[1761841242589,1.53243598,108010.0,108000.0,0.3608]
[1761841242896,0.02532,108000.0,107990.0,0.41966]
[1761841243085,0.59658598,108000.0,107990.0,0.41966]
[1761841243285,0.36658598,108000.0,107990.0,0.41966]
[1761841243892,0.12532,108000.0,107990.0,0.41966]
[1761841244391,0.14750024,108000.0,107990.0,0.41966]
[1761841244984,0.14850024,108000.0,107990.0,0.41966]
[1761841245185,0.14950024,108000.0,107990.0,0.41966]
[1761841245591,0.02318024,108000.0,107990.0,0.41966]
[1761841245886,0.37422024,108000.0,107990.0,0.41966]
[1761841247388,0.34890024,108000.0,107990.0,0.41966]
[1761841247589,0.37422024,108000.0,107990.0,0.41966]
[1761841248196,0.34890024,108000.0,107990.0,0.41966]
[1761841250097,0.32668,108000.0,107990.0,0.46943828]
[1761841250394,0.00257442,108000.0,107990.0,0.96936535]
[1761841252396,0.00257442,108000.0,107990.0,1.11566535]
[1761841253291,0.00257442,108000.0,107990.0,1.02305635]
[1761841253901,0.00257442,108000.0,107990.0,1.11566535]
[1761841255390,0.04936325,108030.0,108020.0,0.02289]
[1761841255590,0.40841055,108030.0,108020.0,0.42005]
[1761841256897,0.43241055,108030.0,108020.0,0.42005]
[1761841257101,0.41241055,108030.0,108020.0,0.42005]
[1761841257401,0.43241055,108030.0,108020.0,0.42005]
[1761841258201,0.43937085,108030.0,108020.0,0.42005]
[1761841260304,0.41937085,108030.0,108020.0,0.42005]
[1761841260499,0.43937085,108030.0,108020.0,0.42005]
[1761841261203,0.41937085,108030.0,108020.0,0.42005]
[1761841261605,0.43937085,108030.0,108020.0,0.42005]
[1761841262102,0.41937085,108030.0,108020.0,0.42005]
[1761841262493,0.43937085,108030.0,108020.0,0.42005]
[1761841263099,0.41937085,108030.0,108020.0,0.42005]
[1761841263299,0.43937085,108030.0,108020.0,0.42005]
[1761841263695,1.00392892,108030.0,108020.0,0.42005]
[1761841263901,1.36748892,108030.0,108020.0,0.05925]
[1761841264097,1.36472892,108030.0,108020.0,0.02289]
[1761841264302,1.00392892,108030.0,108020.0,0.05925]
[1761841264707,0.59937085,108030.0,108020.0,0.42005]
[1761841267508,1.00392892,108030.0,108020.0,0.42005]
[1761841267709,0.03046,108020.0,108010.0,0.05925]
[1761841267896,0.63997287,108020.0,108010.0,0.05925]
[1761841268096,0.66214167,108020.0,108010.0,0.05925]
[1761841268301,0.2575836,108020.0,108010.0,0.05925]
[1761841268710,0.03046,108010.0,108000.0,0.56635]
[1761841269011,0.82874687,108010.0,108000.0,0.56635]
[1761841269406,0.4241888,108010.0,108000.0,0.56635]
[1761841270109,0.4261888,108010.0,108000.0,0.56635]
[1761841271011,0.4301888,108010.0,108000.0,0.56635]
[1761841271612,1.06750687,108010.0,108000.0,0.20555]
[1761841271806,1.06750687,108010.0,108000.0,0.1463]
[1761841271807,1.09246167,108010.0,108000.0,0.1463]
[1761841272113,0.03046,107990.0,107980.0,0.46982828]
[1761841272309,0.4241488,107990.0,107980.0,0.42005]
[1761841272814,0.3741488,107990.0,107980.0,0.42005]
[1761841273010,0.40351291,107990.0,107980.0,0.42005]
[1761841273210,0.3741488,107990.0,107980.0,0.42005]
[1761841273411,0.0614148,108010.0,108000.0,0.05925]
[1761841273606,0.6951224,108010.0,108000.0,0.05925]
[1761841273806,0.6911224,108010.0,108000.0,0.05925]
[1761841274114,1.45448047,108010.0,107990.0,0.37417]
[1761841274310,0.43501807,108000.0,107990.0,0.42005]
[1761841274511,0.80642495,108000.0,107990.0,0.42005]
[1761841275210,0.80642495,108000.0,107990.0,0.05925]
[1761841275410,0.03046,107990.0,107980.0,0.46667828]
[1761841275612,0.4141676,107990.0,107980.0,0.4169]
[1761841275819,0.5641676,107990.0,107980.0,0.4169]
[1761841276711,0.96872567,107990.0,107980.0,0.39545]
[1761841277024,0.82872567,107990.0,107980.0,0.4169]
[1761841277318,0.4241676,107990.0,107980.0,0.4169]
[1761841277706,0.6641676,107990.0,107980.0,0.4169]
[1761841278724,0.64198,107990.0,107980.0,0.4169]
[1761841279811,0.32046,107990.0,107980.0,0.4169]
[1761841280009,0.64198,107990.0,107980.0,0.4169]
[1761841281815,0.05046,107990.0,107980.0,0.4169]
[1761841282018,0.37198,107990.0,107980.0,0.46667828]
[1761841282327,0.37198,107990.0,107980.0,0.4169]
[1761841283122,0.39411975,107990.0,107980.0,0.4169]
[1761841283316,0.37411975,107990.0,107980.0,0.4169]
[1761841283522,0.80653807,107990.0,107980.0,0.4169]
[1761841284021,1.11867678,107990.0,107980.0,0.4169]
[1761841284414,0.88867678,107990.0,107980.0,0.4169]
[1761841284808,0.48411871,107990.0,107980.0,0.4169]
[1761841285012,0.59474,107990.0,107980.0,0.39545]
[1761841285416,0.99929807,107990.0,107980.0,0.39545]
[1761841285623,0.99929807,107990.0,107980.0,0.3608]
[1761841286410,0.99929807,107990.0,107980.0,0.40595]
[1761841286614,0.99653807,107990.0,107980.0,0.40595]
[1761841287016,0.99653807,107990.0,107980.0,0.41926]
[1761841287212,0.59198,107990.0,107980.0,0.41926]
[1761841288914,0.99653807,107990.0,107980.0,0.41926]
[1761841289110,1.01867085,107990.0,107980.0,0.41926]
[1761841290019,0.77867085,107990.0,107980.0,0.41926]
[1761841290224,0.87867085,107990.0,107980.0,0.41926]
[1761841290831,0.47411278,107990.0,107980.0,0.41926]
[1761841291128,0.37411278,107990.0,107980.0,0.41926]
[1761841291328,0.63411278,107990.0,107980.0,0.41926]
[1761841292128,0.03046,107980.0,107970.0,0.46919411]
[1761841292432,0.05046,107980.0,107970.0,0.46919411]
[1761841293130,0.35198,107990.0,107980.0,0.05846]
[1761841293325,0.67411981,107990.0,107980.0,0.05846]
[1761841295536,0.03046,107980.0,107970.0,0.46919411]
[1761841295718,0.08046,107980.0,107970.0,0.46919411]
[1761841296123,0.32152,107990.0,107980.0,0.02265]
[1761841296328,0.68412847,107990.0,107980.0,0.05846]
[1761841296625,0.36260847,107990.0,107980.0,0.05846]
[1761841296832,0.42885847,107990.0,107980.0,0.46903828]
[1761841297037,0.44408847,107990.0,107980.0,0.46903828]
[1761841297328,0.63720386,107990.0,107980.0,0.46903828]
[1761841299234,0.87720386,107990.0,107980.0,0.10823828]
[1761841299431,0.03046,107980.0,107970.0,0.10839411]
[1761841299637,0.27357539,107980.0,107970.0,0.10839411]
[1761841299937,0.54505539,107990.0,107980.0,0.05846]
[1761841300137,0.85722066,107990.0,107980.0,0.05846]
[1761841300435,0.85722066,107990.0,107980.0,0.10823828]
[1761841301433,0.31574066,107990.0,107980.0,0.10823828]
[1761841301729,0.63718066,107990.0,107980.0,0.05846]
[1761841303434,0.66217981,107990.0,107980.0,0.05846]
[1761841303629,1.23297981,107990.0,107980.0,0.04515]
[1761841304032,0.03046,107980.0,107970.0,0.41941583]
[1761841304237,0.28574066,107980.0,107970.0,0.41941583]
[1761841304834,0.24574066,107980.0,107970.0,0.41941583]
[1761841305137,0.26574066,107980.0,107970.0,0.41941583]
[1761841306137,0.26574066,107980.0,107970.0,0.42041583]
[1761841306728,0.26574066,107980.0,107970.0,0.42141583]
[1761841307332,0.45895855,107980.0,107970.0,0.42141583]
[1761841309041,0.45895855,107980.0,107970.0,0.42041583]
[1761841309442,0.24579191,107980.0,107970.0,0.42041583]
[1761841309638,0.24579191,107980.0,107970.0,0.61358247]
[1761841309940,0.24579191,107980.0,107970.0,0.61258247]
[1761841310138,0.02216527,107980.0,107970.0,0.61258247]
[1761841310327,0.81864507,108000.0,107990.0,0.05846]
[1761841310530,1.14146351,108000.0,107990.0,0.05846]
[1761841310731,0.56689687,108000.0,107990.0,0.05846]
[1761841310930,0.62829687,108000.0,107990.0,0.41926]
[1761841311536,0.63029687,108000.0,107990.0,0.41926]
[1761841311743,1.01663015,108000.0,107990.0,0.41926]
[1761841311945,1.68633015,108000.0,107980.0,0.37411]
[1761841312145,0.22362664,107990.0,107980.0,0.41851]
[1761841312338,0.29584508,107990.0,107980.0,0.41851]
[1761841313748,0.29684508,107990.0,107980.0,0.41851]
[1761841313947,0.29884508,107990.0,107980.0,0.41851]
[1761841315644,0.02521844,107990.0,107980.0,0.61167664]
[1761841315847,0.34657844,107990.0,107980.0,0.61167664]
[1761841316042,0.34657844,107990.0,107980.0,0.80484328]
[1761841316447,0.02521844,107990.0,107980.0,0.80484328]
[1761841316646,0.02521844,107990.0,107980.0,0.60760328]
[1761841316948,0.02521844,107990.0,107980.0,0.62105328]
[1761841317739,0.02521844,107990.0,107980.0,1.23749989]
[1761841317942,0.34635915,108010.0,108000.0,0.05785]
[1761841318141,0.34635915,108010.0,108000.0,0.61181664]
[1761841318142,0.53952579,108010.0,108000.0,0.61181664]
[1761841318349,0.34635915,108010.0,108000.0,0.61181664]
[1761841318742,0.58114579,108010.0,108000.0,0.61181664]
[1761841319051,0.58824579,108010.0,108000.0,0.41865]
[1761841319451,0.39807915,108010.0,108000.0,0.41865]
[1761841319753,0.58624579,108010.0,108000.0,0.41865]
[1761841319946,0.60624579,108010.0,108000.0,0.61181664]
[1761841320146,0.60624579,108010.0,108000.0,0.41865]
[1761841320952,0.58624579,108010.0,108000.0,0.41865]
[1761841321153,0.54252579,108010.0,108000.0,0.61181664]
[1761841321341,0.34935915,108010.0,108000.0,0.41865]
[1761841321743,0.39307915,108010.0,108000.0,0.41865]
[1761841322551,0.41307915,108010.0,108000.0,0.41865]
[1761841322752,0.65435825,108010.0,108000.0,0.05785]
[1761841323050,0.66710825,108010.0,108000.0,0.0444]
[1761841323246,0.63435825,108010.0,108000.0,0.05785]
[1761841323445,0.65435825,108010.0,108000.0,0.05785]
[1761841323645,0.66101825,108010.0,108000.0,0.0444]
[1761841323851,0.04372,108000.0,107990.0,0.05785]
[1761841324054,0.04372,107990.0,107980.0,0.05785]
[1761841324349,0.4139,107990.0,107980.0,0.05785]
[1761841324963,0.4239,107990.0,107980.0,0.05785]
[1761841325551,0.3939,107990.0,107980.0,0.05785]
[1761841325857,0.385,107990.0,107980.0,0.05785]
[1761841326056,0.386,107990.0,107980.0,0.05785]
[1761841326258,0.416,107990.0,107980.0,0.05885]
[1761841326450,0.32228,107990.0,107980.0,0.41965]
[1761841326849,0.32328,107990.0,107980.0,0.41865]
[1761841327352,0.3449,107990.0,107980.0,0.41865]
[1761841327556,0.367,107990.0,107980.0,0.41865]
[1761841329552,0.32328,107990.0,107980.0,0.41865]
[1761841329852,0.02402169,107990.0,107980.0,1.40508478]
[1761841330055,0.002,107990.0,107980.0,1.03374738]
[1761841330451,0.002,107990.0,107980.0,1.27266478]
[1761841330844,0.002,107990.0,107980.0,1.18004738]
[1761841331358,0.001,107990.0,107980.0,1.18004738]
[1761841331660,0.001,107990.0,107980.0,1.18104738]
[1761841332256,0.001,107990.0,107980.0,1.17828738]
[1761841332458,0.38995915,108010.0,108000.0,0.05785]
[1761841332653,0.41197651,108010.0,108000.0,0.05785]
[1761841332860,0.43471651,108010.0,108000.0,0.0444]
[1761841333057,0.41197651,108010.0,108000.0,0.05785]
[1761841333452,0.09073651,108010.0,108000.0,0.05785]
[1761841333657,0.41497651,108010.0,108000.0,0.41865]
[1761841333857,0.41597651,108010.0,108000.0,0.41865]
[1761841334062,0.37225651,108010.0,108000.0,0.6599291]
[1761841334263,0.05101651,108010.0,108000.0,0.6599291]
[1761841334561,0.05101651,108010.0,108000.0,0.6626891]
[1761841334562,0.02601736,108010.0,108000.0,0.6626891]
[1761841334763,0.02601736,108010.0,108000.0,0.9839291]
[1761841335256,0.02401736,108010.0,108000.0,0.99052256]
[1761841336155,0.02301736,108010.0,108000.0,1.08412276]
[1761841336360,0.02301736,108010.0,108000.0,1.44560366]
[1761841336361,0.02201736,108010.0,108000.0,1.44560366]
[1761841336664,0.02201736,108010.0,108000.0,1.08688276]
[1761841337056,0.02201736,108010.0,108000.0,1.08788276]
[1761841339154,0.02201736,108010.0,108000.0,0.75400346]
[1761841339356,0.02201736,108010.0,108000.0,0.99252256]
[1761841339559,0.02201736,108010.0,108000.0,1.08512286]
[1761841340164,0.02201736,108010.0,108000.0,0.99252256]
[1761841341760,0.02201736,108010.0,108000.0,1.92640196]
[1761841341966,0.02499915,108020.0,108010.0,0.1494417]
[1761841342267,0.33046848,108030.0,108020.0,0.04636]
[1761841342455,0.08918938,108030.0,108020.0,0.40716]
[1761841342656,0.10148223,108030.0,108020.0,0.42004]
[1761841342960,0.07958223,108030.0,108020.0,0.6613191]
[1761841343160,0.07958223,108030.0,108020.0,0.42004]
[1761841343356,0.05811223,108030.0,108020.0,0.6613191]
[1761841343756,0.02495285,108030.0,108020.0,0.9851991]
[1761841343962,0.02595285,108030.0,108020.0,2.4851991]
[1761841344165,0.02595285,108030.0,108020.0,2.5777822]
[1761841344558,0.02595285,108030.0,108020.0,2.4851991]
[1761841344760,0.02895285,108030.0,108020.0,2.4824391]
[1761841345466,0.02895285,108030.0,108020.0,2.5777822]
[1761841348063,0.004,108030.0,108020.0,3.1777822]
[1761841348468,0.004,108030.0,108020.0,2.8566622]
[1761841348668,0.02495285,108040.0,108030.0,0.1488845]
[1761841348863,0.02495285,108040.0,108030.0,0.6583891]
[1761841349068,0.02495285,108040.0,108030.0,0.9794691]
[1761841349371,0.06832285,108040.0,108030.0,0.73819]
[1761841349762,0.07232285,108040.0,108030.0,0.41711]
[1761841349958,0.07432285,108040.0,108030.0,0.73819]
[1761841350366,0.08698285,108040.0,108030.0,0.73819]
[1761841351771,0.08698285,108040.0,108030.0,0.41711]
[1761841352374,0.09518938,108040.0,108030.0,0.40716]
[1761841354075,0.11699177,108040.0,108030.0,0.40716]
[1761841354463,0.10433177,108040.0,108030.0,0.42111]
[1761841354667,0.05273745,108040.0,108030.0,0.7549636]
[1761841355670,0.05273745,108040.0,108030.0,0.6623891]
[1761841356064,0.05273745,108040.0,108030.0,1.0787236]
[1761841356569,0.05273745,108040.0,108030.0,1.2250236]
[1761841356971,0.05273745,108040.0,108030.0,1.2222636]
[1761841358683,0.05273745,108040.0,108030.0,1.1296891]
[1761841359179,0.07420745,108040.0,108030.0,1.1296891]
[1761841359381,0.05273745,108040.0,108030.0,1.1296891]
[1761841359589,0.05273745,108040.0,108030.0,1.2222636]
[1761841359968,0.006,108040.0,108030.0,1.27204188]
[1761841360390,0.006,108040.0,108030.0,0.95104188]
[1761841360576,0.006,108040.0,108030.0,1.27200188]
[1761841361670,0.006,108040.0,108030.0,1.2222236]
[1761841362478,0.04937,108040.0,108030.0,0.56741]
[1761841362688,0.3233091,108040.0,108030.0,0.40716]
[1761841362887,0.3233091,108040.0,108030.0,0.02313]
[1761841363188,0.08203,108040.0,108030.0,0.04636]
[1761841364181,0.40299,108040.0,108030.0,0.04636]
[1761841364488,0.05603,108030.0,108020.0,2.0071]
[1761841365484,0.04337,108030.0,108020.0,2.02105]
[1761841365683,0.05803,108030.0,108020.0,2.02105]
[1761841366490,0.002,108030.0,108020.0,2.2623291]
[1761841366681,0.003,108030.0,108020.0,2.2623291]
[1761841366881,0.04637,108030.0,108020.0,2.2623291]
[1761841367276,0.04537,108030.0,108020.0,2.02105]
[1761841367488,0.05803,108030.0,108020.0,2.02105]
[1761841367986,0.05603,108030.0,108020.0,2.02205]
[1761841368177,0.04337,108030.0,108020.0,2.02205]
[1761841368384,0.32096,108040.0,108020.0,2.02205]
[1761841368581,0.36433,108040.0,108030.0,0.41554]
[1761841369786,0.34243,108040.0,108030.0,0.41554]
[1761841369983,0.36433,108040.0,108030.0,0.41554]
[1761841371884,0.32096,108040.0,108030.0,0.8197776]
[1761841372687,0.32096,108040.0,108030.0,0.9660776]
[1761841372993,0.34393,108040.0,108030.0,0.9660776]
[1761841373286,0.36543,108040.0,108030.0,0.9660776]
[1761841373884,0.36543,108040.0,108030.0,0.56184]
[1761841374992,0.34393,108040.0,108030.0,0.56184]
[1761841375293,0.32096,108040.0,108030.0,0.6544145]
[1761841375487,0.32096,108040.0,108030.0,0.56184]
[1761841375991,0.34393,108040.0,108030.0,0.56184]
[1761841376188,0.32096,108040.0,108030.0,0.6544145]
[1761841376583,0.00808,108050.0,108040.0,0.05546]
[1761841376789,0.00808,108050.0,108040.0,1.0621235]
[1761841376985,0.00808,108050.0,108040.0,1.0593635]
[1761841377185,0.00808,108050.0,108040.0,1.0621235]
[1761841377390,0.00808,108050.0,108040.0,1.0593635]
[1761841377786,0.01008,108050.0,108040.0,1.0593635]
[1761841377984,0.01108,108050.0,108040.0,1.0593635]
[1761841378391,0.01008,108050.0,108040.0,1.0593635]
[1761841378697,0.01008,108050.0,108040.0,0.9687976]
[1761841379081,0.01008,108050.0,108040.0,1.0613635]
[1761841379590,0.04447,108070.0,108060.0,0.05546]
[1761841379795,0.06613915,108070.0,108060.0,0.41626]
[1761841380495,0.02166915,108070.0,108060.0,0.41626]
[1761841380892,0.02166915,108070.0,108060.0,0.8204976]
[1761841381591,0.02166915,108070.0,108060.0,1.2738464]
[1761841382382,0.02166915,108070.0,108060.0,1.3303576]
[1761841382587,0.02166915,108070.0,108060.0,1.4201464]
[1761841383586,0.02166915,108070.0,108060.0,1.4229064]
[1761841383893,0.02166915,108070.0,108060.0,1.4201464]
[1761841384093,0.02166915,108070.0,108060.0,1.3275976]
[1761841384395,0.02166915,108070.0,108060.0,1.6484376]
[1761841384597,0.02166915,108070.0,108060.0,1.2442]
[1761841384900,0.06613915,108070.0,108060.0,0.92336]
[1761841385086,0.09914915,108070.0,108060.0,0.40341]
[1761841385287,0.05748,108060.0,108050.0,0.40341]
[1761841385493,0.38693915,108060.0,108050.0,0.41626]
[1761841385695,0.41994915,108060.0,108050.0,0.3608]
[1761841385909,0.04447,108040.0,108030.0,0.41179]
[1761841386397,0.06616348,108040.0,108030.0,0.41179]
[1761841386899,0.04466348,108040.0,108030.0,0.41179]
[1761841387094,0.02169348,108040.0,108030.0,0.8160276]
[1761841387298,0.78571455,108060.0,108050.0,0.04261]
[1761841387492,1.1257139,108060.0,108050.0,0.04261]
[1761841388201,0.04447,108050.0,108040.0,0.40341]
[1761841388400,0.06616884,108050.0,108040.0,0.40341]
[1761841388800,0.05748,108040.0,108020.0,1.87365]
[1761841388992,0.04447,108030.0,108020.0,1.87365]
[1761841389396,0.06618596,108030.0,108020.0,1.87365]
[1761841389799,0.10618596,108030.0,108020.0,1.87365]
[1761841389997,0.10618596,108030.0,108020.0,1.8608]
[1761841390198,0.10618596,108030.0,108020.0,1.8638]
[1761841391012,0.49042356,108030.0,108020.0,0.003]
[1761841391196,0.49042356,108030.0,108020.0,0.002]
[1761841391197,1.62398356,108030.0,108020.0,0.002]
[1761841391804,1.21974596,108030.0,108020.0,0.002]
[1761841392001,1.62398356,108030.0,108020.0,0.002]
[1761841392507,1.02398356,108030.0,108020.0,0.002]
[1761841392910,0.04447,108020.0,108010.0,0.3608]
[1761841393108,0.04447,108010.0,108000.0,0.41057828]
[1761841393296,0.4987076,108010.0,108000.0,0.3608]
[1761841393702,0.04447,108010.0,108000.0,0.3608]
[1761841393995,0.05183,108000.0,107990.0,0.41057828]
[1761841394195,0.37267,108000.0,107990.0,0.41057828]
[1761841394402,0.36531,108000.0,107990.0,0.45318828]
[1761841394900,0.39039,108020.0,108010.0,0.02193]
[1761841395100,0.34445,108020.0,108010.0,0.0434]
[1761841395409,0.36529,108020.0,108010.0,0.0434]
[1761841395712,0.34307,108020.0,108010.0,0.0434]
[1761841395912,0.34307,108020.0,108010.0,0.4042]
[1761841396211,0.36529,108020.0,108010.0,0.4042]
[1761841396414,0.37929,108020.0,108010.0,0.4042]
[1761841396705,0.34307,108020.0,108010.0,0.4042]
[1761841396913,0.72609,108030.0,108020.0,0.05665]
[1761841397210,0.7681793,108030.0,108020.0,0.05665]
[1761841397411,0.7981793,108030.0,108020.0,0.0434]
[1761841397604,0.7981793,108030.0,108020.0,0.02193]
[1761841397912,0.05845,108020.0,108010.0,0.3608]
[1761841398110,0.07845,108020.0,108010.0,0.38273]
[1761841398306,0.07845,108020.0,108010.0,0.4042]
[1761841398513,0.05845,108020.0,108010.0,0.4042]
[1761841398715,0.4826876,108020.0,108010.0,0.3608]
[1761841398907,0.04445,108010.0,108000.0,0.05665]
[1761841399107,0.36533,108010.0,108000.0,0.05665]
[1761841399505,0.36809,108010.0,108000.0,0.05665]
[1761841399705,0.36533,108010.0,108000.0,0.05665]
[1761841400011,0.36533,108010.0,108000.0,0.0434]
[1761841400203,0.38533,108010.0,108000.0,0.02193]
[1761841400604,0.38533,108010.0,108000.0,0.0454]
[1761841400809,0.36533,108010.0,108000.0,0.0454]
[1761841401008,0.36533,108010.0,108000.0,0.05965]
[1761841401410,0.38533,108010.0,108000.0,0.0464]
[1761841401810,0.36533,108010.0,108000.0,0.05931]
[1761841402215,0.38533,108010.0,108000.0,0.02493]
[1761841402704,0.38533,108010.0,108000.0,0.06107]
[1761841402705,0.36533,108010.0,108000.0,0.06107]
[1761841403413,0.36533,108010.0,108000.0,0.04816]
[1761841403615,0.38533,108010.0,108000.0,0.04935]
[1761841404009,0.7895676,108010.0,108000.0,0.02612]
[1761841404210,0.7695676,108010.0,108000.0,0.06226]
[1761841404406,0.04445,108010.0,108000.0,0.42306]
[1761841404717,0.36533,108010.0,108000.0,0.42306]
[1761841406401,0.41287,108030.0,108020.0,0.04635]
[1761841406617,0.0452,108030.0,108020.0,0.05926]
[1761841406913,0.0452,108030.0,108020.0,0.42006]
[1761841407103,0.36608,108030.0,108020.0,0.42006]
[1761841407505,0.36708,108030.0,108020.0,0.42006]
[1761841407911,0.38708,108030.0,108020.0,0.42006]
[1761841408110,0.38708,108030.0,108020.0,0.40715]
[1761841408402,0.38808,108030.0,108020.0,0.40715]
[1761841409413,0.36808,108030.0,108020.0,0.40715]
[1761841409812,0.32288,108030.0,108020.0,0.40715]
[1761841411016,0.36708,108030.0,108020.0,0.40715]
[1761841411416,0.36608,108030.0,108020.0,0.40715]
[1761841412001,0.0452,108030.0,108020.0,0.40715]
[1761841415821,0.0452,108030.0,108020.0,0.42006]
[1761841416009,0.0452,108030.0,108020.0,0.40715]
[1761841416010,0.07544463,108030.0,108020.0,0.40715]
[1761841416212,0.0954453,108030.0,108020.0,0.40715]
[1761841417113,0.0754453,108030.0,108020.0,0.40715]
[1761841417319,0.0764453,108030.0,108020.0,0.40715]
[1761841417610,0.4806829,108030.0,108020.0,0.40715]
[1761841417813,1.0624829,108030.0,108010.0,0.42348828]
[1761841418017,0.36608,108020.0,108010.0,0.46983828]
[1761841418214,0.39898,108020.0,108010.0,0.46983828]
[1761841419418,0.37898,108020.0,108010.0,0.46983828]
[1761841419817,0.39898,108020.0,108010.0,0.46983828]
[1761841420320,0.37898,108020.0,108010.0,0.46983828]
[1761841420516,0.39898,108020.0,108010.0,0.46983828]
[1761841421307,0.37898,108020.0,108010.0,0.45692828]
[1761841421512,0.39898,108020.0,108010.0,0.45692828]
[1761841422620,0.39883001,108020.0,108010.0,0.45692828]
[1761841422825,0.39883001,108020.0,108010.0,0.46983828]
[1761841423515,0.37883001,108020.0,108010.0,0.46983828]
[1761841423722,0.39883001,108020.0,108010.0,0.46983828]
[1761841424112,0.39883001,108020.0,108010.0,0.45692828]
[1761841424420,0.37883001,108020.0,108010.0,0.45692828]
[1761841424621,0.34403001,108020.0,108010.0,0.46983828]
[1761841424819,0.32088,108020.0,108010.0,0.46983828]
[1761841425115,0.36608,108020.0,108010.0,0.46983828]
[1761841427821,0.32088,108020.0,108010.0,0.46983828]
[1761841428326,0.36608,108020.0,108010.0,0.46983828]
[1761841428832,0.34418,108020.0,108010.0,0.46983828]
[1761841430219,0.36597008,108020.0,108010.0,0.46983828]
[1761841430928,0.38787008,108020.0,108010.0,0.46983828]
[1761841431118,0.36597008,108020.0,108010.0,0.42006]
[1761841431318,0.36597008,108020.0,108010.0,0.61613828]
[1761841431517,0.34267008,108020.0,108010.0,0.61613828]
[1761841432429,0.36598008,108020.0,108010.0,0.61613828]
[1761841432727,0.34267008,108020.0,108010.0,0.61613828]
[1761841433026,0.07996569,108040.0,108030.0,0.05896]
[1761841433227,0.73259667,108040.0,108030.0,0.05896]
[1761841433819,0.04510098,108040.0,108030.0,0.41976]
[1761841434029,0.36594098,108040.0,108030.0,0.41976]
[1761841434229,0.36894098,108040.0,108030.0,0.41976]
[1761841434713,0.39136098,108040.0,108030.0,0.41976]
[1761841434917,0.38936098,108040.0,108030.0,0.41976]
[1761841435116,0.39036098,108040.0,108030.0,0.41976]
[1761841435327,0.36794098,108040.0,108030.0,0.41976]
[1761841435524,0.36694098,108040.0,108030.0,0.41976]
[1761841435732,0.38836098,108040.0,108030.0,0.41976]
[1761841435931,0.34263098,108040.0,108030.0,0.41976]
[1761841436831,0.36594098,108040.0,108030.0,0.41976]
[1761841437026,0.36594098,108040.0,108030.0,0.56606]
[1761841437627,0.38836098,108040.0,108030.0,0.56606]
[1761841439126,0.64327722,108040.0,108030.0,0.55212]
[1761841439628,0.64327722,108040.0,108030.0,0.56606]
[1761841439828,0.40205098,108040.0,108030.0,0.56606]
[1761841440530,0.38836098,108040.0,108030.0,0.56606]
[1761841440728,0.36594098,108040.0,108030.0,0.41478]
[1761841441036,0.36594098,108040.0,108030.0,0.65600624]
[1761841441333,0.34263098,108040.0,108030.0,0.65600624]